[Event "*** Titled Tuesday Blitz"]
[Site "Chess.com"]
[Date "2021.02.16"]
[Round "3"]
[White "dropstoneDP"]
[Black "francyIM"]
[Result "1-0"]
[WhiteElo "2990"]
[BlackElo "2682"]
[TimeControl "180+1"]
[EndTime "10:31:48 PST"]
[Termination "dropstoneDP won by resignation"]

1. e4 {[%clk 0:03:00.6]} 1... e5 {[%clk 0:02:54.3]} 2. Nc3 {[%clk 0:02:54.4]}
2... Nf6 {[%clk 0:02:49.4]} 3. g3 {[%clk 0:02:54.4]} 3... Bb4 {[%clk 0:02:43.6]}
4. Bg2 {[%clk 0:02:52.2]} 4... Bxc3 {[%clk 0:02:43.4]} 5. dxc3 {[%clk
0:02:45.3]} 5... d6 {[%clk 0:02:43.2]} 6. Ne2 {[%clk 0:02:43.9]} 6... b6 {[%clk
0:02:43.3]} 7. c4 {[%clk 0:02:43.7]} 7... Bb7 {[%clk 0:02:43.5]} 8. Nc3 {[%clk
0:02:44]} 8... Nbd7 {[%clk 0:02:42.8]} 9. O-O {[%clk 0:02:35.7]} 9... h5 {[%clk
0:02:35.2]} 10. Bg5 {[%clk 0:02:32.9]} 10... Nc5 {[%clk 0:02:29.1]} 11. Nd5
{[%clk 0:02:26.7]} 11... Ne6 {[%clk 0:02:10.3]} 12. Nxf6+ {[%clk 0:02:21]} 12...
gxf6 {[%clk 0:02:11.2]} 13. Bh4 {[%clk 0:02:21.7]} 13... Qe7 {[%clk 0:02:10.2]}
14. f4 {[%clk 0:01:50.7]} 14... exf4 {[%clk 0:01:43.1]} 15. e5 {[%clk
0:01:50.8]} 15... Bxg2 {[%clk 0:01:34.4]} 16. Bxf6 {[%clk 0:01:50.8]} 16... Qd7
{[%clk 0:01:33.9]} 17. Kxg2 {[%clk 0:01:51.1]} 17... Qc6+ {[%clk 0:01:29.7]} 18.
Qd5 {[%clk 0:01:47.7]} 18... Kd7 {[%clk 0:01:13.7]} 19. Bxh8 {[%clk 0:01:44.2]}
19... Rxh8 {[%clk 0:01:14.6]} 20. Qxc6+ {[%clk 0:01:42]} 20... Kxc6 {[%clk
0:01:09.7]} 21. gxf4 {[%clk 0:01:28.5]} 21... Rg8+ {[%clk 0:01:03.6]} 22. Kh1
{[%clk 0:01:28.6]} 22... Rg4 {[%clk 0:01:02.7]} 23. Rae1 {[%clk 0:00:56.6]}
23... dxe5 {[%clk 0:00:55.9]} 24. Rxe5 {[%clk 0:00:55.7]} 24... Kd6 {[%clk
0:00:51.4]} 25. Rd5+ {[%clk 0:00:45.7]} 25... Ke7 {[%clk 0:00:50.4]} 26. Rxh5
{[%clk 0:00:45.8]} 26... Nxf4 {[%clk 0:00:50.3]} 27. Rf5 {[%clk 0:00:44.3]}
27... Ne6 {[%clk 0:00:46.4]} 28. Rxf7+ {[%clk 0:00:44.3]} 28... Kd6 {[%clk
0:00:47.3]} 29. b3 {[%clk 0:00:43]} 29... Re4 {[%clk 0:00:43.9]} 30. R7f2 {[%clk
0:00:35.7]} 30... a5 {[%clk 0:00:42.8]} 31. a4 {[%clk 0:00:32.6]} 31... Kc5
{[%clk 0:00:42.1]} 32. h3 {[%clk 0:00:31.1]} 32... Kb4 {[%clk 0:00:42.2]} 33.
Rf3 {[%clk 0:00:19]} 33... Re2 {[%clk 0:00:37.3]} 34. R1f2 {[%clk 0:00:18.8]}
34... Re1+ {[%clk 0:00:37.5]} 35. Kh2 {[%clk 0:00:18.9]} 35... Ng5 {[%clk
0:00:38.1]} 36. Rd3 {[%clk 0:00:14.9]} 36... Ne4 {[%clk 0:00:37.1]} 37. Rg2
{[%clk 0:00:14.9]} 37... Rf1 {[%clk 0:00:34.9]} 38. h4 {[%clk 0:00:14.5]} 38...
Rf4 {[%clk 0:00:34]} 39. Rh3 {[%clk 0:00:13.8]} 39... Nf2 {[%clk 0:00:33.4]} 40.
Re3 {[%clk 0:00:05.5]} 40... Ng4+ {[%clk 0:00:32.7]} 41. Rxg4 {[%clk 0:00:05.2]}
41... Rxg4 {[%clk 0:00:32.9]} 42. h5 {[%clk 0:00:05]} 42... Kc5 {[%clk
0:00:24.3]} 43. h6 {[%clk 0:00:04.3]} 43... Rg8 {[%clk 0:00:24.7]} 44. h7 {[%clk
0:00:04.4]} 44... Rh8 {[%clk 0:00:24.7]} 45. Re7 {[%clk 0:00:02.6]} 45... c6
{[%clk 0:00:23.9]} 46. Kg3 {[%clk 0:00:02.4]} 46... b5 {[%clk 0:00:24.1]} 47.
cxb5 {[%clk 0:00:02.4]} 47... cxb5 {[%clk 0:00:25]} 48. axb5 {[%clk 0:00:03]}
48... Kxb5 {[%clk 0:00:25.1]} 49. Kf4 {[%clk 0:00:03.6]} 49... Kb4 {[%clk
0:00:24.7]} 50. Kg5 {[%clk 0:00:04.2]} 50... Rc8 {[%clk 0:00:19.3]} 51. Kf6
{[%clk 0:00:03.6]} 51... Rc6+ {[%clk 0:00:18.8]} 52. Kg7 {[%clk 0:00:03.9]}
52... Rxc2 {[%clk 0:00:19.7]} 53. h8=Q {[%clk 0:00:03.6]} 53... Rg2+ {[%clk
0:00:20.6]} 54. Kf7 {[%clk 0:00:04]} 54... Rf2+ {[%clk 0:00:21.3]} 55. Ke6
{[%clk 0:00:04.5]} 55... Kxb3 {[%clk 0:00:21.9]} 56. Rc7 {[%clk 0:00:04.5]}
56... Ka4 {[%clk 0:00:21.4]} 57. Kd7 {[%clk 0:00:04.8]} 57... Rd2+ {[%clk
0:00:21.1]} 58. Kc8 {[%clk 0:00:05.2]} 58... Rd3 {[%clk 0:00:20]} 59. Qh4+
{[%clk 0:00:05.2]} 59... Ka3 {[%clk 0:00:20.4]} 60. Qe7+ {[%clk 0:00:05.7]}
60... Ka4 {[%clk 0:00:19.8]} 61. Qe4+ {[%clk 0:00:05.8]} 1-0

[Event "*** Titled Tuesday Blitz"]
[Site "Chess.com"]
[Date "2021.02.16"]
[Round "3"]
[White "Squirlolz"]
[Black "Grineva_Marianna"]
[Result "1-0"]
[WhiteElo "2493"]
[BlackElo "2229"]
[TimeControl "180+1"]
[EndTime "10:31:49 PST"]
[Termination "Squirlolz won by checkmate"]

1. b3 {[%clk 0:03:00.9]} 1... e5 {[%clk 0:02:58.4]} 2. Bb2 {[%clk 0:03:01.8]}
2... Nc6 {[%clk 0:02:56.7]} 3. e3 {[%clk 0:03:02.1]} 3... Nf6 {[%clk 0:02:54.2]}
4. Bb5 {[%clk 0:03:01.8]} 4... d6 {[%clk 0:02:51.9]} 5. f4 {[%clk 0:02:58.1]}
5... exf4 {[%clk 0:02:46.8]} 6. Nf3 {[%clk 0:02:58.5]} 6... fxe3 {[%clk
0:02:41.4]} 7. O-O {[%clk 0:02:58.8]} 7... Be7 {[%clk 0:02:35.1]} 8. dxe3 {[%clk
0:02:46.2]} 8... Bd7 {[%clk 0:02:28.3]} 9. Nbd2 {[%clk 0:02:44.1]} 9... a6
{[%clk 0:02:26.5]} 10. Bd3 {[%clk 0:02:42.8]} 10... Nb4 {[%clk 0:02:18.5]} 11.
Be2 {[%clk 0:02:39.9]} 11... Nbd5 {[%clk 0:02:13.1]} 12. Nc4 {[%clk 0:02:31.1]}
12... b5 {[%clk 0:02:02.7]} 13. e4 {[%clk 0:02:31]} 13... Nf4 {[%clk 0:01:55.8]}
14. Ne3 {[%clk 0:02:24.8]} 14... Nxe2+ {[%clk 0:01:54.3]} 15. Qxe2 {[%clk
0:02:25]} 15... O-O {[%clk 0:01:54.4]} 16. Nf5 {[%clk 0:02:21.5]} 16... Re8
{[%clk 0:01:47.7]} 17. Rae1 {[%clk 0:02:15.9]} 17... Bxf5 {[%clk 0:01:42.5]} 18.
exf5 {[%clk 0:02:16]} 18... Qd7 {[%clk 0:01:42.8]} 19. Qd3 {[%clk 0:02:12.2]}
19... c5 {[%clk 0:01:30.4]} 20. Rd1 {[%clk 0:02:07.9]} 20... Rad8 {[%clk
0:01:27.3]} 21. c4 {[%clk 0:02:02.7]} 21... bxc4 {[%clk 0:01:25.1]} 22. Qxc4
{[%clk 0:01:59.6]} 22... Qb5 {[%clk 0:01:22.6]} 23. Rfe1 {[%clk 0:01:50.2]}
23... Qxc4 {[%clk 0:01:14.6]} 24. bxc4 {[%clk 0:01:51.1]} 24... h6 {[%clk
0:01:07.8]} 25. Bxf6 {[%clk 0:01:47.7]} 25... Bxf6 {[%clk 0:01:05.9]} 26. Rxe8+
{[%clk 0:01:48.6]} 26... Rxe8 {[%clk 0:01:06.3]} 27. Rxd6 {[%clk 0:01:49.4]}
27... Re4 {[%clk 0:00:58.1]} 28. Nd2 {[%clk 0:01:32.8]} 28... Rf4 {[%clk
0:00:46.9]} 29. g3 {[%clk 0:01:18.2]} 29... Bd4+ {[%clk 0:00:38]} 30. Kh1 {[%clk
0:01:18.6]} 30... Rxf5 {[%clk 0:00:28.4]} 31. Rxa6 {[%clk 0:01:12.4]} 31... Rf2
{[%clk 0:00:23.5]} 32. Nb3 {[%clk 0:01:11.8]} 32... Be3 {[%clk 0:00:19.7]} 33.
Rc6 {[%clk 0:01:07.6]} 33... Rxa2 {[%clk 0:00:18.6]} 34. Nxc5 {[%clk 0:01:07]}
34... Bxc5 {[%clk 0:00:18.2]} 35. Rxc5 {[%clk 0:01:07.9]} 35... Rc2 {[%clk
0:00:18.5]} 36. Rc7 {[%clk 0:01:07.6]} 36... f5 {[%clk 0:00:17.7]} 37. c5 {[%clk
0:01:05.3]} 37... Kh7 {[%clk 0:00:18]} 38. Rc6 {[%clk 0:01:03.7]} 38... h5
{[%clk 0:00:16.7]} 39. h4 {[%clk 0:01:02.6]} 39... g6 {[%clk 0:00:15.9]} 40.
Rc7+ {[%clk 0:00:59.8]} 40... Kh6 {[%clk 0:00:16.3]} 41. Kg1 {[%clk 0:01:00]}
41... Rc3 {[%clk 0:00:14.3]} 42. Kf2 {[%clk 0:00:59.9]} 42... Rc2+ {[%clk
0:00:14.9]} 43. Kf3 {[%clk 0:01:00.3]} 43... Rc3+ {[%clk 0:00:14.5]} 44. Kf4
{[%clk 0:01:01]} 44... Rc4+ {[%clk 0:00:15.1]} 45. Ke5 {[%clk 0:01:01.7]} 45...
Rc3 {[%clk 0:00:15.6]} 46. c6 {[%clk 0:00:19.8]} 46... Rxg3 {[%clk 0:00:15.1]}
47. Rd7 {[%clk 0:00:20.1]} 47... Rc3 {[%clk 0:00:14.1]} 48. c7 {[%clk
0:00:20.5]} 48... Rc1 {[%clk 0:00:08.1]} 49. Kf6 {[%clk 0:00:16.6]} 49... f4
{[%clk 0:00:07.8]} 50. Rf7 {[%clk 0:00:07.8]} 50... Rc6+ {[%clk 0:00:07.1]} 51.
Ke5 {[%clk 0:00:07.4]} 51... f3 {[%clk 0:00:05.6]} 52. Kd5 {[%clk 0:00:05.9]}
52... Rc3 {[%clk 0:00:04.9]} 53. Ke4 {[%clk 0:00:05.9]} 53... Rc1 {[%clk
0:00:05.3]} 54. Kxf3 {[%clk 0:00:04.7]} 54... Rf1+ {[%clk 0:00:04.7]} 55. Kg3
{[%clk 0:00:05.2]} 55... Rxf7 {[%clk 0:00:05.2]} 56. c8=Q {[%clk 0:00:05.4]}
56... Rf5 {[%clk 0:00:05.5]} 57. Qh8# {[%clk 0:00:04.9]} 1-0

[Event "*** Titled Tuesday Blitz"]
[Site "Chess.com"]
[Date "2021.02.16"]
[Round "3"]
[White "MariaFominykh"]
[Black "GLeruste"]
[Result "0-1"]
[WhiteElo "2263"]
[BlackElo "2455"]
[TimeControl "180+1"]
[EndTime "10:31:49 PST"]
[Termination "GLeruste won by resignation"]

1. d4 {[%clk 0:03:00.9]} 1... c5 {[%clk 0:02:59.5]} 2. d5 {[%clk 0:03:00.4]}
2... d6 {[%clk 0:02:59.8]} 3. Nc3 {[%clk 0:02:58.8]} 3... Nf6 {[%clk 0:03:00]}
4. e4 {[%clk 0:02:58.3]} 4... e6 {[%clk 0:03:00.4]} 5. Nf3 {[%clk 0:02:51.2]}
5... exd5 {[%clk 0:03:00.3]} 6. Nxd5 {[%clk 0:02:48.4]} 6... Nxd5 {[%clk
0:02:58.3]} 7. Qxd5 {[%clk 0:02:49.3]} 7... Nc6 {[%clk 0:02:57]} 8. Bc4 {[%clk
0:02:30]} 8... Be6 {[%clk 0:02:42]} 9. Qd3 {[%clk 0:02:29.2]} 9... Nb4 {[%clk
0:02:21.3]} 10. Qe2 {[%clk 0:02:19.6]} 10... Be7 {[%clk 0:02:08.3]} 11. O-O
{[%clk 0:02:15.3]} 11... O-O {[%clk 0:02:07.7]} 12. Rd1 {[%clk 0:02:05.2]} 12...
Bg4 {[%clk 0:01:44.5]} 13. c3 {[%clk 0:02:01.8]} 13... Nc6 {[%clk 0:01:44.6]}
14. Bf4 {[%clk 0:02:00.3]} 14... Qb6 {[%clk 0:01:42.6]} 15. h3 {[%clk
0:01:30.1]} 15... Bxf3 {[%clk 0:01:40.1]} 16. Qxf3 {[%clk 0:01:31]} 16... Rad8
{[%clk 0:01:35]} 17. Qg3 {[%clk 0:01:22]} 17... Qxb2 {[%clk 0:01:16.1]} 18. Rab1
{[%clk 0:01:00.7]} 18... Qc2 {[%clk 0:01:13.7]} 19. Bd3 {[%clk 0:00:33.1]} 19...
Qxa2 {[%clk 0:01:01.8]} 20. Rd2 {[%clk 0:00:25.3]} 20... Qe6 {[%clk 0:00:59]}
21. Rxb7 {[%clk 0:00:25.1]} 21... Bf6 {[%clk 0:00:45.5]} 22. Bb5 {[%clk
0:00:23.9]} 22... Ne5 {[%clk 0:00:43.8]} 23. Rxa7 {[%clk 0:00:21.7]} 23... Ng6
{[%clk 0:00:38.8]} 24. Bg5 {[%clk 0:00:19.9]} 24... Bxg5 {[%clk 0:00:36]} 25.
Qxg5 {[%clk 0:00:20.8]} 25... Qxe4 {[%clk 0:00:36.5]} 26. Kh2 {[%clk 0:00:14.9]}
26... Ne5 {[%clk 0:00:33.7]} 27. Be2 {[%clk 0:00:10.8]} 27... h6 {[%clk
0:00:32.1]} 28. Qg3 {[%clk 0:00:10.6]} 28... Ra8 {[%clk 0:00:25.3]} 29. f4
{[%clk 0:00:11]} 29... Rxa7 {[%clk 0:00:23.1]} 30. fxe5 {[%clk 0:00:08.7]} 30...
Qxe5 {[%clk 0:00:23.4]} 31. Rxd6 {[%clk 0:00:07.5]} 31... Qxg3+ {[%clk
0:00:22.3]} 32. Kxg3 {[%clk 0:00:07.4]} 32... Rc7 {[%clk 0:00:22.7]} 33. Bc4
{[%clk 0:00:06.7]} 33... Kh7 {[%clk 0:00:20.2]} 34. Rd5 {[%clk 0:00:06.2]} 34...
g6 {[%clk 0:00:19.7]} 35. Re5 {[%clk 0:00:05.9]} 35... Kg7 {[%clk 0:00:19.7]}
36. Kf4 {[%clk 0:00:06]} 36... Ra8 {[%clk 0:00:10.4]} 37. g4 {[%clk 0:00:05.5]}
37... Ra1 {[%clk 0:00:09.3]} 38. Re3 {[%clk 0:00:05.4]} 38... Rg1 {[%clk
0:00:08.5]} 39. h4 {[%clk 0:00:04.1]} 39... Rd7 {[%clk 0:00:07.4]} 40. h5 {[%clk
0:00:04.2]} 40... g5+ {[%clk 0:00:07]} 41. Kf3 {[%clk 0:00:03.8]} 41... Rd2
{[%clk 0:00:06.1]} 42. Re5 {[%clk 0:00:02.9]} 42... Rc1 {[%clk 0:00:05.6]} 43.
Rxc5 {[%clk 0:00:01.8]} 43... Rxc3+ {[%clk 0:00:05.6]} 44. Ke4 {[%clk
0:00:02.7]} 44... Re2+ {[%clk 0:00:04.9]} 45. Kd4 {[%clk 0:00:02.8]} 45... Rxc4+
{[%clk 0:00:05.1]} 46. Kxc4 {[%clk 0:00:01.7]} 46... Rc2+ {[%clk 0:00:04.8]} 47.
Kd4 {[%clk 0:00:01.7]} 47... Rxc5 {[%clk 0:00:05.2]} 48. Kxc5 {[%clk 0:00:02.4]}
48... f5 {[%clk 0:00:05.8]} 49. gxf5 {[%clk 0:00:01.3]} 49... Kf6 {[%clk
0:00:06.1]} 50. Kd6 {[%clk 0:00:02]} 50... Kxf5 {[%clk 0:00:06.5]} 51. Ke7
{[%clk 0:00:02.6]} 51... g4 {[%clk 0:00:07.1]} 52. Kf7 {[%clk 0:00:03]} 52... g3
{[%clk 0:00:07.1]} 53. Kg7 {[%clk 0:00:03.9]} 53... Kg5 {[%clk 0:00:07.5]} 54.
Kh7 {[%clk 0:00:03.6]} 54... g2 {[%clk 0:00:07.9]} 55. Kh8 {[%clk 0:00:04]}
55... g1=Q {[%clk 0:00:07.9]} 0-1

[Event "*** Titled Tuesday Blitz"]
[Site "Chess.com"]
[Date "2021.02.16"]
[Round "3"]
[White "temiksmozg"]
[Black "Msb2"]
[Result "0-1"]
[WhiteElo "2614"]
[BlackElo "2853"]
[TimeControl "180+1"]
[EndTime "10:31:50 PST"]
[Termination "Msb2 won on time"]

1. d4 {[%clk 0:03:00.9]} 1... d5 {[%clk 0:02:57.7]} 2. c4 {[%clk 0:03:01]} 2...
e6 {[%clk 0:02:52.4]} 3. Nc3 {[%clk 0:03:01.2]} 3... Nf6 {[%clk 0:02:52]} 4.
cxd5 {[%clk 0:03:00.3]} 4... exd5 {[%clk 0:02:52.9]} 5. Bg5 {[%clk 0:02:59.8]}
5... c6 {[%clk 0:02:53.5]} 6. e3 {[%clk 0:03:00.1]} 6... h6 {[%clk 0:02:53.3]}
7. Bh4 {[%clk 0:02:58]} 7... Be7 {[%clk 0:02:53.4]} 8. Bd3 {[%clk 0:02:56.2]}
8... O-O {[%clk 0:02:52.3]} 9. h3 {[%clk 0:02:50.9]} 9... Re8 {[%clk 0:02:51.9]}
10. Bg3 {[%clk 0:02:48.2]} 10... Bd6 {[%clk 0:02:49.5]} 11. Bxd6 {[%clk
0:02:41.3]} 11... Qxd6 {[%clk 0:02:50.4]} 12. Nf3 {[%clk 0:02:41.5]} 12... Ne4
{[%clk 0:02:45.1]} 13. Bxe4 {[%clk 0:02:40.9]} 13... dxe4 {[%clk 0:02:46]} 14.
Nd2 {[%clk 0:02:41]} 14... Qg6 {[%clk 0:02:37.6]} 15. g4 {[%clk 0:02:33.6]}
15... Na6 {[%clk 0:02:27.2]} 16. Qb3 {[%clk 0:02:28.7]} 16... c5 {[%clk
0:02:09.5]} 17. Qb5 {[%clk 0:01:42.4]} 17... Rd8 {[%clk 0:01:55.5]} 18. dxc5
{[%clk 0:01:36.2]} 18... Bd7 {[%clk 0:01:50.2]} 19. Qc4 {[%clk 0:01:33.2]} 19...
Rac8 {[%clk 0:01:39.3]} 20. Ndxe4 {[%clk 0:01:23.5]} 20... Be6 {[%clk
0:01:31.7]} 21. Qe2 {[%clk 0:01:06.2]} 21... Nxc5 {[%clk 0:01:14.7]} 22. Nxc5
{[%clk 0:01:07.1]} 22... Rxc5 {[%clk 0:01:15.3]} 23. f3 {[%clk 0:01:03.8]} 23...
Bc4 {[%clk 0:01:13.7]} 24. Qf2 {[%clk 0:00:50.7]} 24... Rc7 {[%clk 0:00:53.3]}
25. Rd1 {[%clk 0:00:46.4]} 25... Rxd1+ {[%clk 0:00:51.3]} 26. Kxd1 {[%clk
0:00:45.7]} 26... Bxa2 {[%clk 0:00:30.8]} 27. Qd2 {[%clk 0:00:36.4]} 27... Qc6
{[%clk 0:00:24.4]} 28. Ke2 {[%clk 0:00:20.2]} 28... Rd7 {[%clk 0:00:24.7]} 29.
Qc1 {[%clk 0:00:15.9]} 29... Bc4+ {[%clk 0:00:20.6]} 30. Kf2 {[%clk 0:00:16.3]}
30... Bd3 {[%clk 0:00:19.1]} 31. Rd1 {[%clk 0:00:15.2]} 31... h5 {[%clk
0:00:17.7]} 32. e4 {[%clk 0:00:15.2]} 32... hxg4 {[%clk 0:00:17.2]} 33. hxg4
{[%clk 0:00:16.1]} 33... Bc4 {[%clk 0:00:07]} 34. Rxd7 {[%clk 0:00:13.8]} 34...
Qxd7 {[%clk 0:00:07.9]} 35. Qe3 {[%clk 0:00:13.5]} 35... b6 {[%clk 0:00:08.1]}
36. e5 {[%clk 0:00:12.3]} 36... Be6 {[%clk 0:00:07.5]} 37. Ne4 {[%clk
0:00:12.4]} 37... Qd5 {[%clk 0:00:06.5]} 38. Ng5 {[%clk 0:00:09.9]} 38... Bd7
{[%clk 0:00:04.9]} 39. Kg3 {[%clk 0:00:09.5]} 39... Bc6 {[%clk 0:00:03.5]} 40.
Qc3 {[%clk 0:00:08.6]} 40... a5 {[%clk 0:00:02.9]} 41. Qe3 {[%clk 0:00:07.3]}
41... a4 {[%clk 0:00:03.1]} 42. Kf4 {[%clk 0:00:06.9]} 42... Qc4+ {[%clk
0:00:03.2]} 43. Kg3 {[%clk 0:00:06.2]} 43... Qd5 {[%clk 0:00:03.7]} 44. Kh4
{[%clk 0:00:05.4]} 44... f6 {[%clk 0:00:03.7]} 45. exf6 {[%clk 0:00:04.9]} 45...
gxf6 {[%clk 0:00:04.6]} 46. Ne6 {[%clk 0:00:04.5]} 46... Kf7 {[%clk 0:00:04.9]}
47. Nf4 {[%clk 0:00:04.9]} 47... Qd6 {[%clk 0:00:03.7]} 48. Kg3 {[%clk 0:00:02]}
48... Bd7 {[%clk 0:00:02.8]} 49. Qc3 {[%clk 0:00:02.1]} 49... b5 {[%clk
0:00:03.2]} 50. Qa5 {[%clk 0:00:01.6]} 50... b4 {[%clk 0:00:03.2]} 0-1

[Event "*** Titled Tuesday Blitz"]
[Site "Chess.com"]
[Date "2021.02.16"]
[Round "3"]
[White "Godzillator"]
[Black "Pintacara"]
[Result "1/2-1/2"]
[WhiteElo "2271"]
[BlackElo "2494"]
[TimeControl "180+1"]
[EndTime "10:31:54 PST"]
[Termination "Game drawn - insufficient material"]

1. d4 {[%clk 0:03:00.9]} 1... Nf6 {[%clk 0:02:58.5]} 2. c4 {[%clk 0:03:00.9]}
2... e6 {[%clk 0:02:58.1]} 3. Nc3 {[%clk 0:03:01.2]} 3... d5 {[%clk 0:02:58.3]}
4. cxd5 {[%clk 0:03:00.7]} 4... exd5 {[%clk 0:02:58]} 5. Bg5 {[%clk 0:03:00.7]}
5... Nbd7 {[%clk 0:02:57.1]} 6. e3 {[%clk 0:03:00.8]} 6... c6 {[%clk 0:02:55.5]}
7. Bd3 {[%clk 0:03:00.7]} 7... Be7 {[%clk 0:02:56]} 8. Qc2 {[%clk 0:03:01.1]}
8... Nf8 {[%clk 0:02:56.1]} 9. Bf4 {[%clk 0:02:56.5]} 9... Ne6 {[%clk
0:02:56.2]} 10. Be5 {[%clk 0:02:56.8]} 10... g6 {[%clk 0:02:42.7]} 11. Nf3
{[%clk 0:02:56.9]} 11... O-O {[%clk 0:02:41.4]} 12. O-O {[%clk 0:02:56.7]} 12...
Ng7 {[%clk 0:02:40.9]} 13. Rab1 {[%clk 0:02:57.3]} 13... Bf5 {[%clk 0:02:40.6]}
14. b4 {[%clk 0:02:57.9]} 14... a6 {[%clk 0:02:37.8]} 15. a4 {[%clk 0:02:57.4]}
15... Rc8 {[%clk 0:02:37.5]} 16. Rfc1 {[%clk 0:02:55.4]} 16... Bxd3 {[%clk
0:02:34.3]} 17. Qxd3 {[%clk 0:02:55.4]} 17... Nf5 {[%clk 0:02:34.7]} 18. b5
{[%clk 0:02:53.9]} 18... axb5 {[%clk 0:02:34.2]} 19. axb5 {[%clk 0:02:53.6]}
19... c5 {[%clk 0:02:11.7]} 20. dxc5 {[%clk 0:02:52.5]} 20... Rxc5 {[%clk
0:02:12.6]} 21. Ne2 {[%clk 0:02:45.3]} 21... Ne4 {[%clk 0:02:04.4]} 22. Ned4
{[%clk 0:02:31.2]} 22... Nxd4 {[%clk 0:01:52.1]} 23. Bxd4 {[%clk 0:02:31]} 23...
Rxc1+ {[%clk 0:01:46.8]} 24. Rxc1 {[%clk 0:02:30.7]} 24... Qd7 {[%clk
0:01:04.4]} 25. h3 {[%clk 0:02:25.2]} 25... Rc8 {[%clk 0:00:59.3]} 26. Rd1
{[%clk 0:02:24.6]} 26... Nd6 {[%clk 0:00:34.4]} 27. Be5 {[%clk 0:02:13.6]} 27...
Qxb5 {[%clk 0:00:31]} 28. Qxb5 {[%clk 0:01:59.4]} 28... Nxb5 {[%clk 0:00:31.9]}
29. Rxd5 {[%clk 0:01:59.1]} 29... Nc3 {[%clk 0:00:15.9]} 30. Rd7 {[%clk
0:01:58.4]} 30... Bf8 {[%clk 0:00:08.7]} 31. Rxb7 {[%clk 0:01:57.4]} 31... Bg7
{[%clk 0:00:07]} 32. Bxg7 {[%clk 0:01:53.6]} 32... Kxg7 {[%clk 0:00:07.9]} 33.
Ne5 {[%clk 0:01:52.4]} 33... Kf6 {[%clk 0:00:03.5]} 34. Nxf7 {[%clk 0:01:44.8]}
34... Ne4 {[%clk 0:00:01.4]} 35. Nh6 {[%clk 0:01:35.8]} 35... Rc1+ {[%clk
0:00:01.6]} 36. Kh2 {[%clk 0:01:35.4]} 36... Nxf2 {[%clk 0:00:02.2]} 37. Ng4+
{[%clk 0:01:34]} 37... Nxg4+ {[%clk 0:00:02.3]} 38. hxg4 {[%clk 0:01:34.2]}
38... h6 {[%clk 0:00:02.9]} 39. Kg3 {[%clk 0:01:29.2]} 39... Rc2 {[%clk
0:00:01.6]} 40. Kf3 {[%clk 0:01:28.9]} 40... Kg5 {[%clk 0:00:01.7]} 41. Rb5+
{[%clk 0:01:27.4]} 41... Kf6 {[%clk 0:00:02.2]} 42. Rb6+ {[%clk 0:01:24.9]}
42... Kg5 {[%clk 0:00:01.9]} 43. g3 {[%clk 0:01:22.4]} 43... Rc1 {[%clk
0:00:01.5]} 44. Rb5+ {[%clk 0:01:21.4]} 44... Kf6 {[%clk 0:00:02.1]} 45. Kf4
{[%clk 0:01:20.9]} 45... Rf1+ {[%clk 0:00:01.8]} 46. Ke4 {[%clk 0:01:21]} 46...
Ra1 {[%clk 0:00:02.7]} 47. Rb6+ {[%clk 0:01:20.1]} 47... Kg5 {[%clk 0:00:02.7]}
48. Kd5 {[%clk 0:01:14.4]} 48... Rd1+ {[%clk 0:00:02.5]} 49. Ke5 {[%clk
0:01:12.8]} 49... Rg1 {[%clk 0:00:03.4]} 50. e4 {[%clk 0:01:11.8]} 50... Rxg3
{[%clk 0:00:03.8]} 51. Kd6 {[%clk 0:01:09]} 51... Rxg4 {[%clk 0:00:03.9]} 52. e5
{[%clk 0:01:09.2]} 52... Re4 {[%clk 0:00:04.4]} 53. e6 {[%clk 0:01:08.9]} 53...
h5 {[%clk 0:00:04.8]} 54. e7 {[%clk 0:01:08.8]} 54... h4 {[%clk 0:00:04.8]} 55.
Rb5+ {[%clk 0:01:07.6]} 55... Kf6 {[%clk 0:00:04.6]} 56. Rb1 {[%clk 0:01:02.4]}
56... Kf7 {[%clk 0:00:02.9]} 57. Rf1+ {[%clk 0:01:02]} 57... Kg7 {[%clk
0:00:02.4]} 58. Kd7 {[%clk 0:00:55.2]} 58... g5 {[%clk 0:00:02.8]} 59. e8=Q
{[%clk 0:00:54.9]} 59... Rxe8 {[%clk 0:00:03.7]} 60. Kxe8 {[%clk 0:00:55.6]}
60... g4 {[%clk 0:00:03.6]} 61. Ke7 {[%clk 0:00:56.2]} 61... g3 {[%clk 0:00:04]}
62. Rf4 {[%clk 0:00:53.9]} 62... Kh6 {[%clk 0:00:02]} 63. Rxh4+ {[%clk
0:00:53.7]} 63... Kg5 {[%clk 0:00:02.9]} 64. Ra4 {[%clk 0:00:49.4]} 64... g2
{[%clk 0:00:02.8]} 65. Ra1 {[%clk 0:00:49]} 65... Kg4 {[%clk 0:00:02.8]} 66. Ke6
{[%clk 0:00:49.2]} 66... Kf3 {[%clk 0:00:03.1]} 67. Kf5 {[%clk 0:00:48.9]} 67...
Kf2 {[%clk 0:00:03.5]} 68. Ra2+ {[%clk 0:00:49.1]} 68... Kf1 {[%clk 0:00:03.3]}
69. Kf4 {[%clk 0:00:48.4]} 69... g1=Q {[%clk 0:00:02.6]} 70. Ra1+ {[%clk
0:00:48.4]} 70... Kg2 {[%clk 0:00:02.9]} 71. Rxg1+ {[%clk 0:00:48.3]} 71... Kxg1
{[%clk 0:00:03.8]} 1/2-1/2